[Event "Susha Chess Blitz 2022"]
[Site "Shusha"]
[Date "2022.09.24"]
[Round "15"]
[White "Vidit, Santosh Gujrathi"]
[Black "Maghsoodloo, Parham"]
[Result "0-1"]
[ECO "E10"]
[WhiteElo "2710"]
[BlackElo "2721"]
[Annotator "TA"]
[PlyCount "76"]
[EventDate "2022.09.24"]
[EventType "tourn"]
[EventCountry "AZE"]
[SourceTitle "playchess.com"]
[Source "ChessBase"]
[SourceQuality "1"]
[TimeControl "180+2"]

{[%evp 9,76,20,20,15,13,18,21,22,19,13,37,0,0,0,0,0,2,0,0,-25,-15,-15,-12,-58,-35,-68,-72,-102,-110,-105,-107,-108,-116,-116,-113,-129,-104,-118,-108,-120,-121,-118,-121,-237,-231,-321,-306,-323,-329,-589,-554,-559,-546,-681,-659,-1472,-777,-1386,-681,-1319,-651,-654,-656,-641,-619,-1229,-1288,-29987,-29988]} 1. d4 {[%emt 0:00:01]} Nf6 {[%emt 0:00:01]} 2. c4 {[%emt 0:00:01]} e6 {[%emt 0:00:02]} 3. Nf3 {[%emt 0:00:01]} h6 {[%emt 0:00:01]} 4. Nc3 {[%emt 0:00:03]} Bb4 {[%emt 0:00:01]} 5. e3 {[%emt 0:00:04]} Bxc3+ {[%emt 0:00:10]} 6. bxc3 {[%emt 0:00:00] E10: Blumenfeld Gambit.} d6 {[%emt 0:00:02]} 7. Bd3 {[%emt 0:00:02]} O-O {[%emt 0:00:26]} 8. O-O {[%emt 0:00:03] [#] The position is equal.} e5 $146 {[%emt 0:00:01] Strongly threatening ...e4.} ({Predecessor:} 8... Re8 9. e4 e5 10. Re1 c5 11. Rb1 Nc6 12. d5 Ne7 13. Nd2 Qa5 14. Rb3 Ng6 {1-0 (59) Schaub,M (2362)-Calvo,R (2203) ICCF email 2020}) 9. Nd2 {[%emt 0:00:20] Inhibits e4.} c5 {[%emt 0:00:09]} 10. Ne4 {[%emt 0:00:19]} Nc6 {[%emt 0:00:08]} 11. dxc5 {[%emt 0:00:09]} dxc5 {[%emt 0:00:05]} 12. Nxc5 {[%emt 0:00:05]} Qe7 {[%emt 0:00:03]} 13. Ne4 {[%emt 0:00:04]} Rd8 {[%emt 0:00:09] aiming for ...Nxe4.} 14. Qe2 {[%emt 0:00:04]} Nxe4 {[%emt 0:00:17]} 15. Bxe4 {[%emt 0:00:01]} Be6 {[%emt 0:00:01] Against Bd5} 16. Rb1 {[%emt 0:00:07]} (16. Bxc6 $11 bxc6 17. e4) 16... Rac8 {[%emt 0:00:14]} 17. Rb5 {[%emt 0:00:33] Inhibits Na5.} a6 {[%emt 0:00:01] Black converts the advantage convincingly.} 18. Rb1 {[%emt 0:00:19][%cal Oe4d5]} Na5 {[%emt 0:00:04]} 19. Bd5 {[%emt 0:00:04]} Bxd5 {[%emt 0:00:11]} 20. cxd5 {[%emt 0:00:01]} Rxd5 {[%emt 0:00:02]} 21. e4 {[%emt 0:00:03]} Rd7 {[%emt 0:00:02]} 22. Be3 {[%emt 0:00:36]} Qe6 {[%emt 0:00:26] Inhibits Qg4.} 23. Rb6 {[%emt 0:00:14] [#]} Rc6 {[%emt 0:00:01]} 24. Rxc6 {[%emt 0:00:13]} Qxc6 {[%emt 0:00:02]} ({Much weaker is} 24... Nxc6 $6 25. h3 $11) 25. Qg4 {[%emt 0:00:01][%cal Oe3h6]} Rd6 {[%emt 0:00:10][%cal Bd7d6,Bd6c6,Bc6c5][%mdl 32]} 26. Rd1 {[%emt 0:00:10] [#]} (26. h3 $17) 26... Qxe4 $3 $19 {[%emt 0:00:15][%mdl 512]} 27. Qc8+ {[%emt 0:00:08]} (27. Qe2 Rxd1+) 27... Kh7 {[%emt 0:00:00][%cal Rd6d1]} 28. Rf1 {[%emt 0:00:04]} Nc4 {[%emt 0:00:06][%cal Ba5c4,Bc4d2,Bd2e4][%mdl 32]} 29. Bc5 $2 {[%emt 0:00:03]} (29. Bc1 {might work better.}) 29... Rc6 {[%emt 0:00:21]} 30. Qxb7 {[%emt 0:00:02]} Nd2 {[%emt 0:00:01]} 31. Rd1 {[%emt 0:00:05]} Rxc5 {[%emt 0:00:02]} 32. Qxf7 {[%emt 0:00:02] [#]} Rxc3 $1 {[%emt 0:00:02][%cal Oe4g4] White must now prevent ...Qg4!} 33. h3 {[%emt 0:00:02] Against Qg4} (33. Kh1 Nc4) 33... Rc2 {[%emt 0:00:10][%cal Oc2c6] ...Rc6! is the strong threat.} 34. a3 {[%emt 0:00:02]} Qg6 {[%emt 0:00:04]} 35. Qd5 {[%emt 0:00:01]} Ne4 {[%emt 0:00:03]} 36. Rf1 {[%emt 0:00:01]} Qf5 {[%emt 0:00:08][%cal Rc2f2]} 37. f3 {[%emt 0:00:04]} Nc3 {[%emt 0:00:03]} 38. Qb7 {[%emt 0:00:02]} Ne2+ {[%emt 0:00:01] Weighted Error Value: White=1.14/Black=0.47} 0-1

[Event "Susha Chess Blitz 2022"]
[Site "Shusha"]
[Date "2022.09.24"]
[Round "15"]
[White "Yilmaz, Mustafa"]
[Black "Wang, Hao"]
[Result "0-1"]
[ECO "D41"]
[WhiteElo "2633"]
[BlackElo "2722"]
[Annotator "TA"]
[PlyCount "70"]
[EventDate "2022.09.24"]
[EventType "tourn"]
[EventCountry "AZE"]
[SourceTitle "playchess.com"]
[Source "ChessBase"]
[SourceQuality "1"]
[TimeControl "180+2"]

{[%evp 21,70,8,14,20,25,16,17,9,32,24,72,71,85,78,92,99,88,81,122,120,126,118,114,0,0,0,0,0,0,-108,-100,-447,-454,-446,-446,-556,-555,-544,-427,-634,-547,-919,-904,-5054,-4878,-29992,-29993,-29993,-1230,-29992,-650]} 1. d4 {[%emt 0:00:01]} Nf6 {[%emt 0:00:01]} 2. c4 {[%emt 0:00:01]} e6 {[%emt 0:00:02]} 3. Nf3 {[%emt 0:00:01]} d5 {[%emt 0:00:01]} 4. Nc3 {[%emt 0:00:01]} c5 {[%emt 0:00:02]} 5. cxd5 {[%emt 0:00:02]} Nxd5 {[%emt 0:00:01]} 6. e4 {[%emt 0:00:03]} Nxc3 {[%emt 0:00:02]} 7. bxc3 {[%emt 0:00:01][%cal Bb2c3,Bc3d4,Bd4d5,Bd5d6][%mdl 32]} cxd4 {[%emt 0:00:01]} 8. cxd4 {[%emt 0:00:01]} Bb4+ {[%emt 0:00:02]} 9. Bd2 {[%emt 0:00:01]} Bxd2+ {[%emt 0:00:01]} 10. Qxd2 {[%emt 0:00:02]} O-O {[%emt 0:00:03]} 11. Bc4 {[%emt 0:00:02]} b6 {[%emt 0:00:01]} 12. d5 {[%emt 0:00:04] D41: Queen's Gambit Declined: Semi-Tarrasch with 5 cxd5.} Ba6 {[%emt 0:00:05]} 13. Bxa6 {[%emt 0:00:04]} Nxa6 {[%emt 0:00:02]} 14. d6 {[%emt 0:00:01] The position is equal.} Nc5 {[%emt 0:00:08]} 15. e5 {[%emt 0:00:04]} Qd7 {[%emt 0:00:13]} (15... Rc8 $11) 16. O-O $16 {[%emt 0:00:05]} f6 {[%emt 0:00:07]} 17. Rfe1 {[%emt 0:00:11]} Rad8 {[%emt 0:00:08]} 18. Rad1 {[%emt 0:00:03]} Qa4 {[%emt 0:00:03] [#]} 19. Qb2 $146 {[%emt 0:00:08]} ({Predecessor:} 19. Qe2 fxe5 20. Nxe5 Rf4 21. d7 h6 22. g3 Rf5 23. Rd6 Rxe5 24. Qxe5 Rxd7 25. Rxd7 Qxd7 {1-0 (32) Caruana,F (2799)-Xiong,J (2633) Douglas 2017}) 19... Rd7 {[%emt 0:00:27]} 20. h3 {[%emt 0:00:06]} Qf4 {[%emt 0:00:04]} 21. Rd4 {[%emt 0:00:08]} Qf5 {[%emt 0:00:01]} 22. Qb5 {[%emt 0:00:24] Against Nd3} (22. Qd2 $16) 22... Rfd8 $11 {[%emt 0:00:19]} 23. Qc6 {[%emt 0:00:21]} Nd3 $1 {[%emt 0:00:10]} 24. g4 {[%emt 0:01:09]} Qg6 {[%emt 0:00:04]} 25. Nh4 {[%emt 0:00:24]} (25. Re2 $11 fxe5 26. Nxe5 Nxe5 27. Rxe5) 25... Nxe5 $17 {[%emt 0:00:02]} 26. Rxe5 {[%emt 0:00:20][%mdl 8192] This costs White the game.} ({Wrong is} 26. Qxd7 $2 Rxd7 27. Nxg6 Nf3+ 28. Kf1 hxg6 $19) (26. Qc1 $17 {is a better chance.} Qe8 27. f4) 26... Qb1+ $19 {[%emt 0:00:02]} 27. Kg2 {[%emt 0:00:01]} fxe5 {[%emt 0:00:02]} 28. Rd2 {[%emt 0:00:01]} Qb4 {[%emt 0:00:07][%csl LRd2,LRd6] Inhibits Qc4.} 29. Re2 {[%emt 0:00:07]} Qxd6 {[%emt 0:00:02]} 30. Qa4 {[%emt 0:00:02]} (30. Qxd6 $142 Rxd6 31. Rxe5) 30... Qd5+ {[%emt 0:00:05]} 31. Re4 {[%emt 0:00:02]} Rf7 {[%emt 0:00:08] [#] Hoping for ...Qd2.} 32. Nf3 {[%emt 0:00:02] Prevents Qd2.} Rdf8 {[%emt 0:00:03]} 33. Nxe5 {[%emt 0:00:02]} Rxf2+ {[%emt 0:00:02]} 34. Kg3 {[%emt 0:00:00]} Rxa2 {[%emt 0:00:06]} (34... Qd2 $142 35. Rf4 R2xf4 36. Qc2 Qxc2 37. Nd3 Qxd3+ 38. Kh4 g5+ 39. Kxg5 Qxh3 40. a4 Rxg4#) 35. Qb4 {[%emt 0:00:02] [#]} Qd2 {[%emt 0:00:06] Weighted Error Value: White=1.18/Black=0.40} (35... Rg2+ $142 $3 {[%mdl 512]} 36. Kxg2 Qa2+ 37. Qb2 Qxb2+ 38. Kg1 Qf2+ 39. Kh1 Qf1+ 40. Kh2 Rf2+ 41. Kg3 g5 42. h4 Qg2#) 0-1

[Event "Susha Chess Blitz 2022"]
[Site "Shusha"]
[Date "2022.09.24"]
[Round "15"]
[White "Durarbayli, Vasif"]
[Black "Guseinov, Gadir"]
[Result "1/2-1/2"]
[ECO "B67"]
[WhiteElo "2628"]
[BlackElo "2661"]
[Annotator "TA"]
[PlyCount "83"]
[EventDate "2022.09.24"]
[EventType "tourn"]
[EventCountry "AZE"]
[SourceTitle "playchess.com"]
[Source "ChessBase"]
[SourceQuality "1"]
[TimeControl "180+2"]

{[%evp 16,83,35,19,40,28,43,41,40,21,45,30,50,20,12,6,12,-5,-6,-36,33,25,94,44,99,119,110,90,139,112,153,150,218,215,238,242,216,198,190,143,141,138,163,129,132,146,220,189,208,168,264,264,316,282,313,267,296,306,962,957,958,905,997,983,29991,29992,29995,29996,29996,983]} 1. e4 {[%emt 0:00:01]} c5 {[%emt 0:00:01]} 2. Nf3 {[%emt 0:00:00]} d6 {[%emt 0:00:01]} 3. d4 {[%emt 0:00:02]} cxd4 {[%emt 0:00:03]} 4. Nxd4 {[%emt 0:00:01]} Nf6 {[%emt 0:00:00]} 5. Nc3 {[%emt 0:00:01]} Nc6 {[%emt 0:00:01]} 6. Bg5 {[%emt 0:00:02]} e6 {[%emt 0:00:01]} 7. Qd2 {[%emt 0:00:00]} a6 {[%emt 0:00:03]} 8. O-O-O Bd7 9. Kb1 {[%emt 0:00:03]} Nxd4 {[%emt 0:00:04] B67: Sicilian: Richter-Rauzer: 7...a6 8 0-0-0 Bd7, lines without 9 f4 Be7.} 10. Qxd4 Be7 11. f4 {[%emt 0:00:03]} Bc6 {[%emt 0:00:12] White is slightly better.} 12. f5 {[%emt 0:00:03]} Qa5 {[%emt 0:00:20]} 13. Bc4 {[%emt 0:00:01]} exf5 {[%emt 0:00:09] [#]} 14. exf5 $146 {[%emt 0:00:01]} (14. Rhf1 $5 {[%cal Rf1f5]}) ({Predecessor:} 14. Rhf1 fxe4 15. Bxf6 Bxf6 16. Rxf6 gxf6 17. Qxf6 Qe5 18. Qxf7+ Kd8 19. Nd5 Rc8 20. Nf4 {½-½ (29) Lagarde,M (2631)-Muradli,M (2523) Biel 2022}) 14... Qxf5 {[%emt 0:00:10]} 15. Bxf6 {[%emt 0:00:02]} Qxf6 {[%emt 0:00:06]} 16. Qb6 {[%emt 0:00:01]} O-O $1 {[%emt 0:00:08]} (16... Bxg2 $2 17. Rhf1 $1 {[%mdl 512]} Bxf1 18. Rxf1 Qxf1+ 19. Bxf1 $18) 17. Nd5 {[%emt 0:00:01]} Bxd5 {[%emt 0:00:07]} (17... Qe5 $15) 18. Bxd5 $14 {[%emt 0:00:02]} Qg6 {[%emt 0:00:33]} (18... Rab8 $11) 19. h4 {[%emt 0:00:33]} ({Better is} 19. Qxb7 $16 Bf6 20. Qxa8 Rxa8 21. Bxa8) 19... Rad8 {[%emt 0:00:13]} (19... Rac8 $14) 20. Qxb7 $16 {[%emt 0:00:44]} Bf6 {[%emt 0:00:01] Threatens to win with ...Rb8.} 21. Qxa6 {[%emt 0:00:01]} Qg3 {[%emt 0:00:08]} ({Black should play} 21... Rb8 22. Bb3 Qxg2) 22. Rh3 {[%emt 0:00:17][%cal Bh1h3,Bh3f3,Bf3f5][%mdl 32]} Qe5 {[%emt 0:00:01][%csl Gf6][%cal Re5b2] [#]} 23. c3 $1 {[%emt 0:00:12] Active counter play!} h5 {[%emt 0:00:15]} (23... Qh5 $16 24. Qd3 h6) 24. Qd3 $18 {[%emt 0:00:02]} Rfe8 {[%emt 0:00:06]} 25. Rf3 {[%emt 0:00:03]} Rb8 {[%emt 0:00:14]} 26. Rf5 {[%emt 0:00:17]} ({Avoid the trap} 26. Qg6 $2 {[#]} Qxd5 $3 {[%mdl 512]} 27. Rxd5 fxg6 $19) 26... Qe2 {[%emt 0:00:03][%csl Gb8][%cal Re2b2]} 27. Bb3 {[%emt 0:00:22]} (27. Qxe2 $18 Rxe2 28. b4) 27... Qxg2 $16 {[%emt 0:00:22][%cal Ob8b3]} 28. Rxh5 {[%emt 0:00:57]} Qe4 {[%emt 0:00:22]} 29. Rd5 {[%emt 0:00:03]} Qxd3+ {[%emt 0:00:04]} 30. R5xd3 {[%emt 0:00:02]} Be5 {[%emt 0:00:01]} (30... Bxh4 $16 31. Rxd6 Re2) 31. h5 {[%emt 0:00:01]} Re7 {[%emt 0:00:02]} 32. Rf1 {[%emt 0:00:01]} Rf8 {[%emt 0:00:04]} (32... Kf8 {is a better defense.} 33. Bd5 Rc7) 33. Rdf3 $18 {[%emt 0:00:01]} Rd7 {[%emt 0:00:04]} 34. Bd5 {[%emt 0:00:02]} Ra7 {[%emt 0:00:04]} 35. a3 {[%emt 0:00:01]} Bf6 {[%emt 0:00:05]} 36. h6 {[%emt 0:00:01]} Be5 {[%emt 0:00:00]} (36... Bg5 37. Bxf7+ Kh8 38. hxg7+ Kxg7) 37. hxg7 {[%emt 0:00:02]} Bxg7 {[%emt 0:00:02]} 38. Rg1 {[%emt 0:00:01] Strongly threatening Rfg3.} Ra5 {[%emt 0:00:03]} 39. c4 {[%emt 0:00:04] Intending Rfg3 and mate.} Rb8 {[%emt 0:00:00]} 40. Bxf7+ {[%emt 0:00:05] White mates.} Kh7 {[%emt 0:00:04]} 41. Rh3+ {[%emt 0:00:03]} Bh6 {[%emt 0:00:01]} 42. Rgh1 {[%emt 0:00:03][%mdl 32768] Weighted Error Value: White=0.16 (very precise) /Black=0.45. An unexpected result.} (42. Rg6 $142 Rxb2+ 43. Kxb2 Rb5+ 44. cxb5 Kh8 45. Rhxh6#) 1/2-1/2

[Event "Susha Chess Blitz 2022"]
[Site "Shusha"]
[Date "2022.09.24"]
[Round "16"]
[White "Mamedyarov, Shakhriyar"]
[Black "Kasimdzhanov, Rustam"]
[Result "0-1"]
[ECO "D30"]
[WhiteElo "2757"]
[BlackElo "2670"]
[Annotator "TA"]
[PlyCount "62"]
[EventDate "2022.09.24"]
[EventType "tourn"]
[EventCountry "AZE"]
[SourceTitle "playchess.com"]
[Source "ChessBase"]
[SourceQuality "1"]
[TimeControl "180+2"]

{[%evp 12,62,32,45,35,20,13,4,22,26,13,0,0,0,0,0,10,0,9,9,11,-11,0,-23,-21,-17,-18,-26,-31,-76,-48,-38,-43,-43,0,-10,0,-64,-45,-53,-53,-155,-172,-206,-206,-204,-207,-207,-195,-201,-210,-1242,-1143]} 1. d4 {[%emt 0:00:00]} d5 {[%emt 0:00:00]} 2. c4 {[%emt 0:00:02]} e6 {[%emt 0:00:01]} 3. Nf3 {[%emt 0:00:02]} c5 {[%emt 0:00:00]} 4. cxd5 {[%emt 0:00:06]} exd5 {[%emt 0:00:01]} 5. Bg5 {[%emt 0:00:02]} Nf6 {[%emt 0:00:03]} 6. Nc3 {[%emt 0:00:08]} Be6 {[%emt 0:00:01]} 7. e3 {[%emt 0:00:06]} c4 {[%emt 0:00:01] D32: Tarrasch Defence: Sidelines and lines without g3.} 8. g3 {[%emt 0:00:17] [#]} Nbd7 $146 {[%emt 0:00:04]} ({Predecessor:} 8... Bb4 9. Bg2 O-O 10. O-O Bxc3 11. bxc3 Nbd7 12. Nd2 Qa5 13. Qc2 h6 14. Bf4 b5 15. Rfb1 {½-½ (96) Bykhovsky,A (2496)-Batsiashvili,N (2457) Chess.com INT 2020}) 9. Bg2 {[%emt 0:00:02]} Bd6 {[%emt 0:00:21] Prevents Ne5. The position is equal.} (9... Qa5 {keeps more tension.} 10. O-O Bb4 11. Ne5 Bxc3 12. bxc3 Ne4) 10. O-O {[%emt 0:00:15][%cal Oe3e4]} O-O {[%emt 0:00:01]} 11. e4 {[%emt 0:00:13]} dxe4 {[%emt 0:00:08]} 12. Nxe4 {[%emt 0:00:02]} Be7 {[%emt 0:00:01]} 13. Nc3 {[%emt 0:00:04]} h6 {[%emt 0:00:06]} 14. Bd2 {[%emt 0:00:20]} Nb6 {[%emt 0:00:07]} 15. Re1 {[%emt 0:00:02][%cal Oe1e6]} Re8 {[%emt 0:00:11]} 16. h3 {[%emt 0:00:28]} Bf8 {[%emt 0:00:05]} 17. Kh2 {[%emt 0:00:02]} Nbd5 {[%emt 0:00:08]} 18. Ne5 {[%emt 0:00:05]} Rc8 {[%emt 0:00:05]} 19. Rc1 {[%emt 0:00:04]} a6 {[%emt 0:00:15]} 20. Ne4 Nxe4 {[%emt 0:00:09]} 21. Bxe4 {[%emt 0:00:19]} b5 {[%emt 0:00:03]} 22. Qf3 {[%emt 0:00:10]} Nf6 {[%emt 0:00:25]} 23. Bc6 $1 {[%emt 0:00:03]} Bd5 {[%emt 0:00:02]} 24. Bxd5 {[%emt 0:00:02]} ({White should play} 24. Bxe8 $11 Bxf3 25. Bxf7+ Kh7 26. Bg6+ (26. Nxf3 Qb6 $11) 26... Kg8 27. Bf7+ (27. Nxf3 Qd5 $11) 27... Kh7 28. Nxf3) 24... Qxd5 $15 {[%emt 0:00:02]} 25. Qxd5 {[%emt 0:00:03]} Nxd5 {[%emt 0:00:02][%cal Bf6d5,Bd5b4,Bb4d3,Bd3e1][%mdl 32]} 26. Ng4 {[%emt 0:00:06]} (26. a3 $15) 26... Bb4 $17 {[%emt 0:00:13]} 27. Rxe8+ {[%emt 0:00:18]} Rxe8 28. Bxb4 {[%emt 0:00:14]} Nxb4 {[%emt 0:00:03]} 29. a3 {[%emt 0:00:02]} Nd3 {[%emt 0:00:05][%csl LRb2,LRc1]} 30. Rc2 {[%emt 0:00:01]} Rd8 {[%emt 0:00:02]} 31. Kg2 $2 {[%emt 0:00:08] [#]} (31. Ne5 Rxd4 32. Nxd3 Rxd3 33. Kg2) 31... Ne1+ {Weighted Error Value: White=0.40/Black=0.07 (flawless)} 0-1

[Event "Susha Chess Blitz 2022"]
[Site "Shusha"]
[Date "2022.09.24"]
[Round "16"]
[White "Wang, Hao"]
[Black "Yilmaz, Mustafa"]
[Result "1-0"]
[ECO "C88"]
[WhiteElo "2722"]
[BlackElo "2633"]
[Annotator "TA"]
[PlyCount "110"]
[EventDate "2022.09.24"]
[EventType "tourn"]
[EventCountry "AZE"]
[SourceTitle "playchess.com"]
[Source "ChessBase"]
[SourceQuality "1"]
[TimeControl "180+2"]

{[%evp 22,110,0,0,2,0,0,8,0,0,15,43,18,6,6,3,7,4,13,8,27,20,132,130,123,139,129,77,143,126,146,157,170,143,266,269,265,266,259,273,280,280,260,68,148,72,291,291,331,329,329,327,316,5,5,0,0,-22,-22,-16,183,-91,-75,-68,-58,-66,-52,-70,-47,-188,490,508,499,390,407,396,406,383,382,367,539,526,455,457,574,560,29966,29968,29966,29968,6789]} 1. e4 {[%emt 0:00:02]} e5 {[%emt 0:00:01]} 2. Nf3 {[%emt 0:00:01]} Nc6 {[%emt 0:00:00]} 3. Bb5 {[%emt 0:00:01]} a6 {[%emt 0:00:01]} 4. Ba4 {[%emt 0:00:01]} Nf6 {[%emt 0:00:01]} 5. O-O {[%emt 0:00:02]} Be7 {[%emt 0:00:01]} 6. Re1 {[%emt 0:00:01]} b5 {[%emt 0:00:01]} 7. Bb3 {[%emt 0:00:01]} O-O {[%emt 0:00:02]} 8. h3 {[%emt 0:00:01]} Bb7 {[%emt 0:00:05]} 9. d3 {[%emt 0:00:02]} d5 {[%emt 0:00:01]} 10. exd5 {[%emt 0:00:02]} Nxd5 {[%emt 0:00:03]} 11. Nxe5 {[%emt 0:00:03]} Nxe5 {[%emt 0:00:03] now scores much better than the old 11...Nd4.} 12. Rxe5 {[%emt 0:00:02]} Qd6 {[%emt 0:00:00] C88: Closed Ruy Lopez: Anti-Marshall Systems.} 13. Re1 {[%emt 0:00:04]} Rae8 {[%emt 0:00:03]} 14. Nd2 {[%emt 0:00:04]} c5 {[%emt 0:00:01] The position is equal.} (14... Nf6 {seems wilder.} 15. a4 Bd8 16. Nf1 Rxe1 17. Qxe1 c5) 15. Ne4 {[%emt 0:00:11]} Qc6 {[%emt 0:00:02]} 16. c4 {[%emt 0:00:02]} Nb6 {[%emt 0:00:02]} 17. cxb5 {[%emt 0:00:16]} axb5 {[%emt 0:00:05]} 18. Qf3 {[%emt 0:00:14] has lost popularity (18.a4).} c4 {[%emt 0:01:06]} 19. dxc4 {[%emt 0:00:01]} bxc4 {[%emt 0:00:02]} 20. Bc2 {[%emt 0:00:01]} f5 {[%emt 0:00:01]} 21. Nc3 {[%emt 0:00:37] [#]} Qc7 $146 {[%emt 0:00:07]} (21... Bf6 $11 {remains equal.} 22. Bf4 (22. Rxe8 Rxe8 23. Be3 Qxf3 $11) 22... Qxf3 23. gxf3 g6) ({Predecessor:} 21... Qxf3 22. gxf3 Bxf3 23. Bf4 Bb4 24. Rxe8 Rxe8 25. Bxf5 Bxc3 26. bxc3 Nd5 27. Bd7 Re2 {½-½ (44) Svidler,P (2749)-Muzychuk,A (2580) Caleta 2012}) 22. Bf4 $16 {[%emt 0:00:07]} Qc8 {[%emt 0:00:22]} 23. Qg3 {[%emt 0:00:06] White is much more active.} Rf6 {[%emt 0:00:05]} 24. Qe3 {[%emt 0:00:13]} ({Better is} 24. f3) 24... Rg6 {[%emt 0:00:36]} (24... Qc6 $142 25. Qf3 Qc8) 25. Bg3 $1 {[%emt 0:00:02]} (25. f3 $2 Bc5 26. Kf1 Bxe3 $19) 25... h5 {[%emt 0:00:18]} 26. Qf4 {[%emt 0:00:20] Prevents h4.} Qc6 {[%emt 0:00:10][%csl Gb7][%cal Rc6g2]} 27. f3 $1 {[%emt 0:00:03] And now Kh1 would win.} Bd6 {[%emt 0:00:20]} (27... h4 $16) 28. Qxf5 $18 {[%emt 0:00:24]} (28. Rxe8+ Qxe8 29. Qxf5 (29. Qxd6 $2 Rxd6 30. Bxd6 Qe3+ 31. Kf1 Qd2 $19) 29... Rxg3 30. Qh7+ Kf8 31. Qh8+ Kf7 32. Qxh5+ Kf8 33. Qh8+ Kf7 34. Qh5+ Kf8 35. Qh8+ Kf7 36. Qh5+ $11) 28... Rxg3 {[%emt 0:00:05]} 29. Qh7+ {[%emt 0:00:03]} Kf8 {[%emt 0:00:07][%cal Og3g2]} 30. Qh8+ {[%emt 0:00:06]} Kf7 {[%emt 0:00:01] ( -> ...Rxg2+)} 31. Qxh5+ {[%emt 0:00:02]} Kf8 {[%emt 0:00:01]} 32. Qf5+ {[%emt 0:00:10] Really sharp!} (32. Kh1 $18 Bc7 33. Nb5 (33. Be4 Qe6 $18)) 32... Kg8 $16 {[%emt 0:00:02] Hoping for ...g6.} 33. Qh7+ {[%emt 0:00:10]} (33. Be4 $142 $1 {[%cal Re4c6]} Qc5+ 34. Qxc5 Bxc5+ 35. Kh2) 33... Kf8 $2 {[%emt 0:00:01]} (33... Kf7 $16 34. Qh5+ Kf8) 34. Be4 $18 {[%emt 0:00:13][%mdl 64] Skewer} Qc5+ {[%emt 0:00:04] [#]} 35. Kf1 $1 {[%emt 0:00:02] Strongly threatening Qh8+.} Bc6 {[%emt 0:00:06]} 36. Bxc6 {[%emt 0:00:07]} Qxc6 {[%emt 0:00:01]} 37. Qh8+ $2 {[%emt 0:00:02]} ({Resist} 37. Ne4 Bb8 38. Qh8+ Kf7 39. Qh5+ Kf8 40. Qh8+ Kf7 41. Qh5+ Kf8 42. Qh8+) (37. Rxe8+ $18 Qxe8 38. Re1) 37... Kf7 $132 {[%emt 0:00:01][%mdl 2048] Black puts up resistance} 38. Qh5+ {[%emt 0:00:02]} Rg6 {[%emt 0:00:04]} 39. Ne4 {[%emt 0:00:03]} Be7 {[%emt 0:00:03] Prevents Ng5+.} 40. Rad1 {[%emt 0:00:04][%cal Oe4d6]} Kg8 $2 {[%emt 0:00:01] [#]} (40... Rd8 $11) 41. Kg1 $2 {[%emt 0:00:08]} (41. Nd6 $1 $18 {[%mdl 512]} Rxd6 42. Rxd6 Bxd6 43. Rxe8+ Bf8 44. Qe5) 41... Rf8 {[%emt 0:00:01]} 42. Kh1 {[%emt 0:00:01]} Bb4 {[%emt 0:00:02]} 43. Re2 {[%emt 0:00:02]} ({But not} 43. Ng5 $2 Rh6 44. Qg4 Bxe1 45. Rxe1 Qd7 46. Qxd7 Nxd7 $19) 43... Rh6 {[%emt 0:00:02]} 44. Qe5 {[%emt 0:00:02]} Re6 {[%emt 0:00:02]} 45. Qg3 {[%emt 0:00:01]} (45. Qg5 $15) 45... Bd6 $4 {[%emt 0:00:02][%mdl 8192]} 46. Rxd6 $18 {[%emt 0:00:02]} Rxd6 {[%emt 0:00:05]} 47. Qxd6 {[%emt 0:00:03]} Qxd6 {[%emt 0:00:03]} 48. Nxd6 {[%emt 0:00:01][%mdl 4096] Endgame KRN-KRN} Rd8 {[%emt 0:00:01]} 49. Re8+ {[%emt 0:00:03]} Rxe8 {[%emt 0:00:01]} 50. Nxe8 {[%emt 0:00:01] KN-KN} Kf7 {[%emt 0:00:00]} (50... Na4 $142 51. Kg1 (51. b3 $2 c3 $19) 51... Kf8) 51. Nd6+ {[%emt 0:00:02]} Ke6 {[%emt 0:00:01]} 52. Ne4 {[%emt 0:00:01]} Na4 {[%emt 0:00:03]} 53. b3 {[%emt 0:00:05]} c3 {[%emt 0:00:01]} 54. bxa4 {[%emt 0:00:02]} c2 {[%emt 0:00:01]} 55. Nc5+ {[%emt 0:00:01]} Kd5 {Weighted Error Value: White=0.38/Black=0.63} 1-0